Workbook

Sheet Compte de résultat Relevé
B1: Compte de résultat Relevé
D3: PÉRIODE ANTÉRIEURE | E3: BUDGET | F3: PÉRIODE ACTUELLE | H3: PÉRIODE ACTUELLE EN % DES VENTES | I3: VARIATION EN % PAR RAPPORT À PÉRIODE ANTÉRIEURE | J3: VARIATION EN % PAR RAPPORT AU BUDGET
B4: Chiffre d’affaires
B6: Produit/service 1 | D6: 40 | E6: 50 | F6: 45 | H6: =IFERROR(Chiffred’affaires[[#This Row],[Période Actuelle ]]/SUBTOTAL(109,Chiffred’affaires[[Période Actuelle ]]),0) -> 1 | I6: =IFERROR(Chiffred’affaires[[#This Row],[Période Actuelle ]]/Chiffred’affaires[[#This Row],[Période Antérieure ]]-1,0) -> 0.125 | J6: =IFERROR(Chiffred’affaires[[#This Row],[Période Actuelle ]]/Chiffred’affaires[[#This Row],[Budget]]-1,0) -> -0.1
B7: Produit/service 2 | H7: =IFERROR(Chiffred’affaires[[#This Row],[Période Actuelle ]]/SUBTOTAL(109,Chiffred’affaires[[Période Actuelle ]]),0) -> 0 | I7: =IFERROR(Chiffred’affaires[[#This Row],[Période Actuelle ]]/Chiffred’affaires[[#This Row],[Période Antérieure ]]-1,0) -> 0 | J7: =IFERROR(Chiffred’affaires[[#This Row],[Période Actuelle ]]/Chiffred’affaires[[#This Row],[Budget]]-1,0) -> 0
B8: Produit/service 3 | H8: =IFERROR(Chiffred’affaires[[#This Row],[Période Actuelle ]]/SUBTOTAL(109,Chiffred’affaires[[Période Actuelle ]]),0) -> 0 | I8: =IFERROR(Chiffred’affaires[[#This Row],[Période Actuelle ]]/Chiffred’affaires[[#This Row],[Période Antérieure ]]-1,0) -> 0 | J8: =IFERROR(Chiffred’affaires[[#This Row],[Période Actuelle ]]/Chiffred’affaires[[#This Row],[Budget]]-1,0) -> 0
B9: Produit/service 4 | H9: =IFERROR(Chiffred’affaires[[#This Row],[Période Actuelle ]]/SUBTOTAL(109,Chiffred’affaires[[Période Actuelle ]]),0) -> 0 | I9: =IFERROR(Chiffred’affaires[[#This Row],[Période Actuelle ]]/Chiffred’affaires[[#This Row],[Période Antérieure ]]-1,0) -> 0 | J9: =IFERROR(Chiffred’affaires[[#This Row],[Période Actuelle ]]/Chiffred’affaires[[#This Row],[Budget]]-1,0) -> 0
B10: Total | D10: =SUBTOTAL(109,Chiffred’affaires[[Période Antérieure ]]) -> 40 | E10: =SUBTOTAL(109,Chiffred’affaires[Budget]) -> 50 | F10: =SUBTOTAL(109,Chiffred’affaires[[Période Actuelle ]]) -> 45 | H10: =IFERROR(Chiffred’affaires[[#Totals],[Période Actuelle ]]/Chiffred’affaires[[#Totals],[Période Actuelle ]],0) -> 1 | I10: =IFERROR(Chiffred’affaires[[#Totals],[Période Actuelle ]]/Chiffred’affaires[[#Totals],[Période Antérieure ]]-1,0) -> 0.125 | J10: =IFERROR(Chiffred’affaires[[#Totals],[Période Actuelle ]]/Chiffred’affaires[[#Totals],[Budget]]-1,0) -> -0.1
B12: Coût des ventes
B14: Produit/service 1 | E14: 2 | F14: 3 | H14: =IFERROR(Coûtdesventes[[#This Row],[Période Actuelle ]]/SUBTOTAL(109,Chiffred’affaires[[Période Actuelle ]]),0) -> 0.06666666667 | I14: =IFERROR(Coûtdesventes[[#This Row],[Période Actuelle ]]/Coûtdesventes[[#This Row],[Période Antérieure ]]-1,0) -> 0 | J14: =IFERROR(Coûtdesventes[[#This Row],[Période Actuelle ]]/Coûtdesventes[[#This Row],[Budget]]-1,0) -> 0.5
B15: Produit/service 2 | E15: 5 | F15: 3 | H15: =IFERROR(Coûtdesventes[[#This Row],[Période Actuelle ]]/SUBTOTAL(109,Chiffred’affaires[[Période Actuelle ]]),0) -> 0.06666666667 | I15: =IFERROR(Coûtdesventes[[#This Row],[Période Actuelle ]]/Coûtdesventes[[#This Row],[Période Antérieure ]]-1,0) -> 0 | J15: =IFERROR(Coûtdesventes[[#This Row],[Période Actuelle ]]/Coûtdesventes[[#This Row],[Budget]]-1,0) -> -0.4
B16: Produit/service 3 | F16: 1 | H16: =IFERROR(Coûtdesventes[[#This Row],[Période Actuelle ]]/SUBTOTAL(109,Chiffred’affaires[[Période Actuelle ]]),0) -> 0.02222222222 | I16: =IFERROR(Coûtdesventes[[#This Row],[Période Actuelle ]]/Coûtdesventes[[#This Row],[Période Antérieure ]]-1,0) -> 0 | J16: =IFERROR(Coûtdesventes[[#This Row],[Période Actuelle ]]/Coûtdesventes[[#This Row],[Budget]]-1,0) -> 0
B17: Produit/service 4 | H17: =IFERROR(Coûtdesventes[[#This Row],[Période Actuelle ]]/SUBTOTAL(109,Chiffred’affaires[[Période Actuelle ]]),0) -> 0 | I17: =IFERROR(Coûtdesventes[[#This Row],[Période Actuelle ]]/Coûtdesventes[[#This Row],[Période Antérieure ]]-1,0) -> 0 | J17: =IFERROR(Coûtdesventes[[#This Row],[Période Actuelle ]]/Coûtdesventes[[#This Row],[Budget]]-1,0) -> 0
B18: Total | D18: =SUBTOTAL(109,Coûtdesventes[[Période Antérieure ]]) -> 0 | E18: =SUBTOTAL(109,Coûtdesventes[Budget]) -> 7 | F18: =SUBTOTAL(109,Coûtdesventes[[Période Actuelle ]]) -> 7 | H18: =IFERROR(Coûtdesventes[[#Totals],[Période Actuelle ]]/SUBTOTAL(109,Chiffred’affaires[[Période Actuelle ]]),0) -> 0.1555555556 | I18: =IFERROR(Coûtdesventes[[#Totals],[Période Actuelle ]]/Coûtdesventes[[#Totals],[Période Antérieure ]]-1,0) -> 0 | J18: =IFERROR(Coûtdesventes[[#Totals],[Période Actuelle ]]/Coûtdesventes[[#Totals],[Budget]]-1,0) -> 0
B20: Marge brute | D20: =SUM(Chiffred’affaires[[Période Antérieure ]])-SUM(Coûtdesventes[[Période Antérieure ]]) -> 40 | E20: =SUM(Chiffred’affaires[Budget])-SUM(Coûtdesventes[Budget]) -> 43 | F20: =SUM(Chiffred’affaires[[Période Actuelle ]])-SUM(Coûtdesventes[[Période Actuelle ]]) -> 38 | H20: =IFERROR(F20/SUBTOTAL(109,Chiffred’affaires[[Période Actuelle ]]),0) -> 0.8444444444 | I20: =IFERROR(F20/D20-1,0) -> -0.05 | J20: =IFERROR(F20/E20-1,0) -> -0.1162790698
B22: Charges d’exploitation : ventes et marketing
B24: Publicité | E24: 22 | F24: 19 | H24: =IFERROR(ventesetmarketing[[#This Row],[Période Actuelle ]]/SUBTOTAL(109,Chiffred’affaires[[Période Actuelle ]]),0) -> 0.4222222222 | I24: =IFERROR(ventesetmarketing[[#This Row],[Période Actuelle ]]/ventesetmarketing[[#This Row],[Période Antérieure ]]-1,0) -> 0 | J24: =IFERROR(ventesetmarketing[[#This Row],[Période Actuelle ]]/ventesetmarketing[[#This Row],[Budget]]-1,0) -> -0.1363636364
B25: Marketing direct | H25: =IFERROR(ventesetmarketing[[#This Row],[Période Actuelle ]]/SUBTOTAL(109,Chiffred’affaires[[Période Actuelle ]]),0) -> 0 | I25: =IFERROR(ventesetmarketing[[#This Row],[Période Actuelle ]]/ventesetmarketing[[#This Row],[Période Antérieure ]]-1,0) -> 0 | J25: =IFERROR(ventesetmarketing[[#This Row],[Période Actuelle ]]/ventesetmarketing[[#This Row],[Budget]]-1,0) -> 0
B26: Autres dépenses (préciser) | H26: =IFERROR(ventesetmarketing[[#This Row],[Période Actuelle ]]/SUBTOTAL(109,Chiffred’affaires[[Période Actuelle ]]),0) -> 0 | I26: =IFERROR(ventesetmarketing[[#This Row],[Période Actuelle ]]/ventesetmarketing[[#This Row],[Période Antérieure ]]-1,0) -> 0 | J26: =IFERROR(ventesetmarketing[[#This Row],[Période Actuelle ]]/ventesetmarketing[[#This Row],[Budget]]-1,0) -> 0
B27: Total | D27: =SUBTOTAL(109,ventesetmarketing[[Période Antérieure ]]) -> 0 | E27: =SUBTOTAL(109,ventesetmarketing[Budget]) -> 22 | F27: =SUBTOTAL(109,ventesetmarketing[[Période Actuelle ]]) -> 19 | H27: =IFERROR(ventesetmarketing[[#Totals],[Période Actuelle ]]/SUBTOTAL(109,Chiffred’affaires[[Période Actuelle ]]),0) -> 0.4222222222 | I27: =IFERROR(ventesetmarketing[[#Totals],[Période Actuelle ]]/ventesetmarketing[[#Totals],[Période Antérieure ]]-1,0) -> 0 | J27: =IFERROR(ventesetmarketing[[#Totals],[Période Actuelle ]]/ventesetmarketing[[#Totals],[Budget]]-1,0) -> -0.1363636364
B29: Charges d’exploitation : frais généraux et administratifs
B31: Salaires et traitements | E31: 56 | F31: 51 | H31: =IFERROR(fraisgénérauxetadministratifs[[#This Row],[Période Actuelle ]]/SUBTOTAL(109,Chiffred’affaires[[Période Actuelle ]]),0) -> 1.133333333 | I31: =IFERROR(fraisgénérauxetadministratifs[[#This Row],[Période Actuelle ]]/fraisgénérauxetadministratifs[[#This Row],[Période Antérieure ]]-1,0) -> 0 | J31: =IFERROR(fraisgénérauxetadministratifs[[#This Row],[Période Actuelle ]]/fraisgénérauxetadministratifs[[#This Row],[Budget]]-1,0) -> -0.08928571429
B32: Services extérieurs | H32: =IFERROR(fraisgénérauxetadministratifs[[#This Row],[Période Actuelle ]]/SUBTOTAL(109,Chiffred’affaires[[Période Actuelle ]]),0) -> 0 | I32: =IFERROR(fraisgénérauxetadministratifs[[#This Row],[Période Actuelle ]]/fraisgénérauxetadministratifs[[#This Row],[Période Antérieure ]]-1,0) -> 0 | J32: =IFERROR(fraisgénérauxetadministratifs[[#This Row],[Période Actuelle ]]/fraisgénérauxetadministratifs[[#This Row],[Budget]]-1,0) -> 0
B33: Fournitures | H33: =IFERROR(fraisgénérauxetadministratifs[[#This Row],[Période Actuelle ]]/SUBTOTAL(109,Chiffred’affaires[[Période Actuelle ]]),0) -> 0 | I33: =IFERROR(fraisgénérauxetadministratifs[[#This Row],[Période Actuelle ]]/fraisgénérauxetadministratifs[[#This Row],[Période Antérieure ]]-1,0) -> 0 | J33: =IFERROR(fraisgénérauxetadministratifs[[#This Row],[Période Actuelle ]]/fraisgénérauxetadministratifs[[#This Row],[Budget]]-1,0) -> 0
B34: Repas et divertissements | H34: =IFERROR(fraisgénérauxetadministratifs[[#This Row],[Période Actuelle ]]/SUBTOTAL(109,Chiffred’affaires[[Période Actuelle ]]),0) -> 0 | I34: =IFERROR(fraisgénérauxetadministratifs[[#This Row],[Période Actuelle ]]/fraisgénérauxetadministratifs[[#This Row],[Période Antérieure ]]-1,0) -> 0 | J34: =IFERROR(fraisgénérauxetadministratifs[[#This Row],[Période Actuelle ]]/fraisgénérauxetadministratifs[[#This Row],[Budget]]-1,0) -> 0
B35: Location | H35: =IFERROR(fraisgénérauxetadministratifs[[#This Row],[Période Actuelle ]]/SUBTOTAL(109,Chiffred’affaires[[Période Actuelle ]]),0) -> 0 | I35: =IFERROR(fraisgénérauxetadministratifs[[#This Row],[Période Actuelle ]]/fraisgénérauxetadministratifs[[#This Row],[Période Antérieure ]]-1,0) -> 0 | J35: =IFERROR(fraisgénérauxetadministratifs[[#This Row],[Période Actuelle ]]/fraisgénérauxetadministratifs[[#This Row],[Budget]]-1,0) -> 0
B36: Téléphone | H36: =IFERROR(fraisgénérauxetadministratifs[[#This Row],[Période Actuelle ]]/SUBTOTAL(109,Chiffred’affaires[[Période Actuelle ]]),0) -> 0 | I36: =IFERROR(fraisgénérauxetadministratifs[[#This Row],[Période Actuelle ]]/fraisgénérauxetadministratifs[[#This Row],[Période Antérieure ]]-1,0) -> 0 | J36: =IFERROR(fraisgénérauxetadministratifs[[#This Row],[Période Actuelle ]]/fraisgénérauxetadministratifs[[#This Row],[Budget]]-1,0) -> 0
B37: Services | H37: =IFERROR(fraisgénérauxetadministratifs[[#This Row],[Période Actuelle ]]/SUBTOTAL(109,Chiffred’affaires[[Période Actuelle ]]),0) -> 0 | I37: =IFERROR(fraisgénérauxetadministratifs[[#This Row],[Période Actuelle ]]/fraisgénérauxetadministratifs[[#This Row],[Période Antérieure ]]-1,0) -> 0 | J37: =IFERROR(fraisgénérauxetadministratifs[[#This Row],[Période Actuelle ]]/fraisgénérauxetadministratifs[[#This Row],[Budget]]-1,0) -> 0
B38: Dépréciation | H38: =IFERROR(fraisgénérauxetadministratifs[[#This Row],[Période Actuelle ]]/SUBTOTAL(109,Chiffred’affaires[[Période Actuelle ]]),0) -> 0 | I38: =IFERROR(fraisgénérauxetadministratifs[[#This Row],[Période Actuelle ]]/fraisgénérauxetadministratifs[[#This Row],[Période Antérieure ]]-1,0) -> 0 | J38: =IFERROR(fraisgénérauxetadministratifs[[#This Row],[Période Actuelle ]]/fraisgénérauxetadministratifs[[#This Row],[Budget]]-1,0) -> 0
B39: Assurance | H39: =IFERROR(fraisgénérauxetadministratifs[[#This Row],[Période Actuelle ]]/SUBTOTAL(109,Chiffred’affaires[[Période Actuelle ]]),0) -> 0 | I39: =IFERROR(fraisgénérauxetadministratifs[[#This Row],[Période Actuelle ]]/fraisgénérauxetadministratifs[[#This Row],[Période Antérieure ]]-1,0) -> 0 | J39: =IFERROR(fraisgénérauxetadministratifs[[#This Row],[Période Actuelle ]]/fraisgénérauxetadministratifs[[#This Row],[Budget]]-1,0) -> 0
B40: Réparations et entretien | H40: =IFERROR(fraisgénérauxetadministratifs[[#This Row],[Période Actuelle ]]/SUBTOTAL(109,Chiffred’affaires[[Période Actuelle ]]),0) -> 0 | I40: =IFERROR(fraisgénérauxetadministratifs[[#This Row],[Période Actuelle ]]/fraisgénérauxetadministratifs[[#This Row],[Période Antérieure ]]-1,0) -> 0 | J40: =IFERROR(fraisgénérauxetadministratifs[[#This Row],[Période Actuelle ]]/fraisgénérauxetadministratifs[[#This Row],[Budget]]-1,0) -> 0
B41: Autres dépenses (préciser) | H41: =IFERROR(fraisgénérauxetadministratifs[[#This Row],[Période Actuelle ]]/SUBTOTAL(109,Chiffred’affaires[[Période Actuelle ]]),0) -> 0 | I41: =IFERROR(fraisgénérauxetadministratifs[[#This Row],[Période Actuelle ]]/fraisgénérauxetadministratifs[[#This Row],[Période Antérieure ]]-1,0) -> 0 | J41: =IFERROR(fraisgénérauxetadministratifs[[#This Row],[Période Actuelle ]]/fraisgénérauxetadministratifs[[#This Row],[Budget]]-1,0) -> 0
B42: Total | D42: =SUBTOTAL(109,fraisgénérauxetadministratifs[[Période Antérieure ]]) -> 0 | E42: =SUBTOTAL(109,fraisgénérauxetadministratifs[Budget]) -> 56 | F42: =SUBTOTAL(109,fraisgénérauxetadministratifs[[Période Actuelle ]]) -> 51 | H42: =IFERROR(fraisgénérauxetadministratifs[[#Totals],[Période Actuelle ]]/SUBTOTAL(109,Chiffred’affaires[[Période Actuelle ]]),0) -> 1.133333333 | I42: =IFERROR(fraisgénérauxetadministratifs[[#Totals],[Période Actuelle ]]/fraisgénérauxetadministratifs[[#Totals],[Période Antérieure ]]-1,0) -> 0 | J42: =IFERROR(fraisgénérauxetadministratifs[[#Totals],[Période Actuelle ]]/fraisgénérauxetadministratifs[[#Totals],[Budget]]-1,0) -> -0.08928571429
B44: Charges d’exploitation : autres
B46: Autres charges d’exploitation 1 | E46: 10 | H46: =IFERROR(AutresCatégoriedeschargesd’exploitation[[#This Row],[Période Actuelle ]]/SUBTOTAL(109,Chiffred’affaires[[Période Actuelle ]]),0) -> 0 | I46: =IFERROR(AutresCatégoriedeschargesd’exploitation[[#This Row],[Période Actuelle ]]/AutresCatégoriedeschargesd’exploitation[[#This Row],[Période Antérieure ]]-1,0) -> 0 | J46: =IFERROR(AutresCatégoriedeschargesd’exploitation[[#This Row],[Période Actuelle ]]/AutresCatégoriedeschargesd’exploitation[[#This Row],[Budget]]-1,0) -> -1
B47: Autres charges d’exploitation 2 | H47: =IFERROR(AutresCatégoriedeschargesd’exploitation[[#This Row],[Période Actuelle ]]/SUBTOTAL(109,Chiffred’affaires[[Période Actuelle ]]),0) -> 0 | I47: =IFERROR(AutresCatégoriedeschargesd’exploitation[[#This Row],[Période Actuelle ]]/AutresCatégoriedeschargesd’exploitation[[#This Row],[Période Antérieure ]]-1,0) -> 0 | J47: =IFERROR(AutresCatégoriedeschargesd’exploitation[[#This Row],[Période Actuelle ]]/AutresCatégoriedeschargesd’exploitation[[#This Row],[Budget]]-1,0) -> 0
B48: Total | D48: =SUBTOTAL(109,AutresCatégoriedeschargesd’exploitation[[Période Antérieure ]]) -> 0 | E48: =SUBTOTAL(109,AutresCatégoriedeschargesd’exploitation[Budget]) -> 10 | F48: =SUBTOTAL(109,AutresCatégoriedeschargesd’exploitation[[Période Actuelle ]]) -> 0 | H48: =IFERROR(AutresCatégoriedeschargesd’exploitation[[#Totals],[Période Actuelle ]]/SUBTOTAL(109,Chiffred’affaires[[Période Actuelle ]]),0) -> 0 | I48: =IFERROR(AutresCatégoriedeschargesd’exploitation[[#Totals],[Période Actuelle ]]/AutresCatégoriedeschargesd’exploitation[[#Totals],[Période Antérieure ]]-1,0) -> 0 | J48: =IFERROR(AutresCatégoriedeschargesd’exploitation[[#Totals],[Période Actuelle ]]/AutresCatégoriedeschargesd’exploitation[[#Totals],[Budget]]-1,0) -> -1
B50: Total des charges d’exploitation | D50: =SUM(ventesetmarketing[[Période Antérieure ]],fraisgénérauxetadministratifs[[Période Antérieure ]],AutresCatégoriedeschargesd’exploitation[[Période Antérieure ]]) -> 0 | E50: =SUM(ventesetmarketing[Budget],fraisgénérauxetadministratifs[Budget],AutresCatégoriedeschargesd’exploitation[Budget]) -> 88 | F50: =SUM(ventesetmarketing[[Période Actuelle ]],fraisgénérauxetadministratifs[[Période Actuelle ]],AutresCatégoriedeschargesd’exploitation[[Période Actuelle ]]) -> 70 | H50: =IFERROR(F50/SUBTOTAL(109,Chiffred’affaires[[Période Actuelle ]]),0) -> 1.555555556 | I50: =IFERROR(F50/D50-1,0) -> 0 | J50: =IFERROR(F50/E50-1,0) -> -0.2045454545
B52: Résultat d’exploitation | D52: =D20-D50 -> 40 | E52: =E20-E50 -> -45 | F52: =F20-F50 -> -32 | H52: =IFERROR(F52/SUBTOTAL(109,Chiffred’affaires[[Période Actuelle ]]),0) -> -0.7111111111 | I52: =IFERROR(IF(D52=F52,0,IF(F52>D52,ABS((F52/D52)-1),IF(AND(F52<D52,D52<0),-((F52/D52)-1),(F52/D52)-1))),0) -> -1.8 | J52: =IFERROR(IF(E52=F52,0,IF(F52>E52,ABS((F52/E52)-1),IF(AND(F52<E52,E52<0),-((F52/E52)-1),(F52/E52)-1))),0) -> 0.2888888889
B54: Autre revenu | H54: =IFERROR(F54/SUBTOTAL(109,Chiffred’affaires[[Période Actuelle ]]),0) -> 0 | I54: =IFERROR(F54/D54-1,0) -> 0 | J54: =IFERROR(F54/E54-1,0) -> 0
B56: Taxes
B58: Impôts sur le revenu | E58: 32 | F58: 30 | H58: =IFERROR(Taxes[[#This Row],[Période Actuelle ]]/SUBTOTAL(109,Chiffred’affaires[[Période Actuelle ]]),0) -> 0.6666666667 | I58: =IFERROR(Taxes[[#This Row],[Période Actuelle ]]/Taxes[[#This Row],[Période Antérieure ]]-1,0) -> 0 | J58: =IFERROR(Taxes[[#This Row],[Période Actuelle ]]/Taxes[[#This Row],[Budget]]-1,0) -> -0.0625
B59: Charges sociales | H59: =IFERROR(Taxes[[#This Row],[Période Actuelle ]]/SUBTOTAL(109,Chiffred’affaires[[Période Actuelle ]]),0) -> 0 | I59: =IFERROR(Taxes[[#This Row],[Période Actuelle ]]/Taxes[[#This Row],[Période Antérieure ]]-1,0) -> 0 | J59: =IFERROR(Taxes[[#This Row],[Période Actuelle ]]/Taxes[[#This Row],[Budget]]-1,0) -> 0
B60: Taxes foncières | H60: =IFERROR(Taxes[[#This Row],[Période Actuelle ]]/SUBTOTAL(109,Chiffred’affaires[[Période Actuelle ]]),0) -> 0 | I60: =IFERROR(Taxes[[#This Row],[Période Actuelle ]]/Taxes[[#This Row],[Période Antérieure ]]-1,0) -> 0 | J60: =IFERROR(Taxes[[#This Row],[Période Actuelle ]]/Taxes[[#This Row],[Budget]]-1,0) -> 0
B61: Autres taxes (préciser) | H61: =IFERROR(Taxes[[#This Row],[Période Actuelle ]]/SUBTOTAL(109,Chiffred’affaires[[Période Actuelle ]]),0) -> 0 | I61: =IFERROR(Taxes[[#This Row],[Période Actuelle ]]/Taxes[[#This Row],[Période Antérieure ]]-1,0) -> 0 | J61: =IFERROR(Taxes[[#This Row],[Période Actuelle ]]/Taxes[[#This Row],[Budget]]-1,0) -> 0
B62: Total | D62: =SUBTOTAL(109,Taxes[[Période Antérieure ]]) -> 0 | E62: =SUBTOTAL(109,Taxes[Budget]) -> 32 | F62: =SUBTOTAL(109,Taxes[[Période Actuelle ]]) -> 30 | H62: =IFERROR(Taxes[[#Totals],[Période Actuelle ]]/SUBTOTAL(109,Chiffred’affaires[[Période Actuelle ]]),0) -> 0.6666666667 | I62: =IFERROR(Taxes[[#Totals],[Période Actuelle ]]/Taxes[[#Totals],[Période Antérieure ]]-1,0) -> 0 | J62: =IFERROR(Taxes[[#Totals],[Période Actuelle ]]/Taxes[[#Totals],[Budget]]-1,0) -> -0.0625
B64: Bénéfice net | D64: =D52+D54-Taxes[[#Totals],[Période Antérieure ]] -> 40 | E64: =E52+E54-Taxes[[#Totals],[Période Antérieure ]] -> -45 | F64: =F52+F54-Taxes[[#Totals],[Période Antérieure ]] -> -32 | H64: =IFERROR(F64/SUBTOTAL(109,Chiffred’affaires[[Période Actuelle ]]),0) -> -0.7111111111 | I64: =IFERROR(IF(D64=F64,0,IF(F64>D64,ABS((F64/D64)-1),IF(AND(F64<D64,D64<0),-((F64/D64)-1),(F64/D64)-1))),0) -> -1.8 | J64: =IFERROR(IF(E64=F64,0,IF(F64>E64,ABS((F64/E64)-1),IF(AND(F64<E64,E64<0),-((F64/E64)-1),(F64/E64)-1))),0) -> 0.2888888889
B65: Marge brute | D65: =D20/SUM(Chiffred’affaires[[Période Antérieure ]]) -> 1 | E65: =E20/SUM(Chiffred’affaires[Budget]) -> 0.86 | F65: =F20/SUM(Chiffred’affaires[[Période Actuelle ]]) -> 0.8444444444
B66: Taux de rentabilité opérationnelle | D66: =D64/SUM(Chiffred’affaires[[Période Antérieure ]]) -> 1 | E66: =E64/SUM(Chiffred’affaires[Budget]) -> -0.9 | F66: =F64/SUM(Chiffred’affaires[[Période Actuelle ]]) -> -0.7111111111
